fUSD/lending_fUSD_20250207
["ID","MTS","AMOUNT","RATE_DAILY","PERIOD"]
[352101593,1738948244315,-513.86,0.00016438,2]
[352101595,1738948244324,-500.0,0.00016438,2]
[352101597,1738948244334,-530.04,0.00016438,2]
[352101598,1738948244346,-500.0,0.00016438,2]
[352101600,1738948244355,-500.0,0.00016438,2]
[352101602,1738948244364,-500.0,0.00016438,2]
[352101604,1738948244373,-500.0,0.00016438,2]
[352101606,1738948244382,-500.0,0.00016438,2]
[352101608,1738948244391,-500.0,0.00016438,2]
[352101610,1738948244400,-2442.97,0.00016438,2]
[352101612,1738948244411,-500.0,0.00016438,2]
[352101614,1738948244420,-500.0,0.00016438,2]
[352101616,1738948244429,-500.0,0.00016438,2]
[352101618,1738948244438,-500.0,0.00016438,2]
[352101620,1738948244447,-951.8,0.00016438,2]
[352101622,1738948244457,-500.0,0.00016438,2]
[352101624,1738948244466,-500.0,0.00016438,2]
[352101626,1738948244475,-500.0,0.00016438,2]
[352101628,1738948244485,-500.0,0.00016438,2]
[352101630,1738948244494,-500.0,0.00016438,2]
[352101632,1738948244503,-500.0,0.00016438,2]
[352101634,1738948244514,-1166.16,0.00016438,2]
[352101636,1738948244528,-3714.5,0.00016438,2]
[352101638,1738948244544,-500.0,0.00016438,2]
[352101640,1738948244554,-500.0,0.00016438,2]
[352101642,1738948244563,-500.0,0.00016438,2]
[352101644,1738948244572,-500.0,0.00016438,2]
[352101646,1738948244582,-500.0,0.00016438,2]
[352101648,1738948244593,-500.0,0.00016438,2]
[352101650,1738948244603,-500.0,0.00016438,2]
[352101652,1738948244612,-500.0,0.00016438,2]
[352101654,1738948244621,-500.0,0.00016438,2]
[352101656,1738948244630,-4326.7,0.00016438,2]
[352101672,1738948244775,-500.0,0.00016438,2]
[352101674,1738948244786,-500.0,0.00016438,2]
[352101676,1738948244795,-500.0,0.00016438,2]
[352101678,1738948244804,-500.0,0.00016438,2]
[352101680,1738948244813,-500.0,0.00016438,2]
[352101682,1738948244823,-500.0,0.00016438,2]
[352101684,1738948244832,-500.0,0.00016438,2]
[352101686,1738948244846,-500.0,0.00016438,2]
[352101688,1738948244856,-500.0,0.00016438,2]
[352101690,1738948244865,-500.0,0.00016438,2]
[352101692,1738948244878,-500.0,0.00016438,2]
[352101694,1738948244888,-1020.65,0.00016438,2]
[352101696,1738948244898,-500.0,0.00016438,2]
[352101698,1738948244907,-500.0,0.00016438,2]
[352101700,1738948244917,-500.0,0.00016438,2]
[352101702,1738948244927,-500.0,0.00016438,2]
[352101704,1738948244936,-500.0,0.00016438,2]
[352101706,1738948244949,-504.90376454,0.00016438,2]
[352101708,1738948244959,-1485.42,0.00016438,2]
[352101710,1738948244968,-500.0,0.00016438,2]
[352101712,1738948244977,-500.0,0.00016438,2]
[352101714,1738948244986,-500.0,0.00016438,2]
[352101716,1738948244996,-3355.63,0.00016438,2]
[352101718,1738948245006,-452.78,0.00016438,2]
[352101720,1738948245015,-500.0,0.00016438,2]
[352101722,1738948245026,-500.0,0.00016438,2]
[352101724,1738948245035,-154.61752,0.00016438,2]
[352101726,1738948245045,-824.89,0.00016438,2]
[352101728,1738948245054,-500.0,0.00016438,2]
[352101730,1738948245064,-1701.08,0.00016438,2]
[352101732,1738948245073,-615.33274651,0.00016438,2]
[352101734,1738948245083,-500.0,0.00016438,2]
[352101736,1738948245096,-500.0,0.00016438,2]
[352101738,1738948245105,-891.87,0.00016438,2]
[352101740,1738948245115,-500.0,0.00016438,2]
[352101742,1738948245124,-500.0,0.00016438,2]
[352101744,1738948245134,-500.0,0.00016438,2]
[352101746,1738948245143,-500.0,0.00016438,2]
[352101748,1738948245152,-500.0,0.00016438,2]
[352101750,1738948245161,-500.0,0.00016438,2]
[352101752,1738948245171,-589.96009486,0.00016438,2]
[352101754,1738948245180,-1106.56,0.00016438,2]
[352101756,1738948245189,-2932.68,0.00016438,2]
[352101758,1738948245199,-500.0,0.00016438,2]
[352101760,1738948245208,-500.0,0.00016438,2]
[352101762,1738948245218,-1865.26,0.00016438,2]
[352101764,1738948245229,-703.3,0.00016438,2]
[352101766,1738948245238,-500.0,0.00016438,2]
[352101768,1738948245247,-500.0,0.00016438,2]
[352101770,1738948245257,-572.05,0.00016438,2]
[352101772,1738948245266,-500.0,0.00016438,2]
[352101774,1738948245276,-500.0,0.00016438,2]
[352101776,1738948245285,-500.0,0.00016438,2]
[352101778,1738948245295,-500.0,0.00016438,2]
[352101780,1738948245305,-500.0,0.00016438,2]
[352101782,1738948245314,-1316.38,0.00016438,2]
[352101784,1738948245324,-501.45399728,0.00016438,2]
[352101786,1738948245334,-2414.36,0.00016438,2]
[352101788,1738948245345,-500.0,0.00016438,2]
[352101790,1738948245355,-500.0,0.00016438,2]
[352101792,1738948245364,-513.11171233,0.00016438,2]
[352101794,1738948245374,-500.0,0.00016438,2]
[352101796,1738948245383,-856.26,0.00016438,2]
[352101798,1738948245393,-1959.49,0.00016438,2]
[352101800,1738948245402,-500.0,0.00016438,2]
[352101802,1738948245411,-500.0,0.00016438,2]
[352101804,1738948245421,-500.0,0.00016438,2]
[352101806,1738948245432,-500.0,0.00016438,2]
[352101808,1738948245441,-500.0,0.00016438,2]
[352101810,1738948245450,-500.0,0.00016438,2]
[352101812,1738948245459,-500.0,0.00016438,2]
[352101814,1738948245469,-500.0,0.00016438,2]
[352101816,1738948245479,-1261.18,0.00016438,2]
[352101818,1738948245488,-500.0,0.00016438,2]
[352101820,1738948245497,-500.0,0.00016438,2]
[352101822,1738948245507,-500.0,0.00016438,2]
[352101824,1738948245516,-500.0,0.00016438,2]
[352101826,1738948245525,-500.0,0.00016438,2]
[352101828,1738948245535,-1549.75,0.00016438,2]
[352101830,1738948245544,-500.0,0.00016438,2]
[352101832,1738948245553,-500.0,0.00016438,2]
[352101834,1738948245563,-500.0,0.00016438,2]
[352101836,1738948245572,-500.0,0.00016438,2]
[352101838,1738948245582,-500.0,0.00016438,2]
[352101840,1738948245593,-500.0,0.00016438,2]
[352101842,1738948245603,-500.0,0.00016438,2]
[352101845,1738948245612,-500.0,0.00016438,2]
[352101847,1738948245622,-500.0,0.00016438,2]
[352101849,1738948245631,-1222.0,0.00016438,2]
[352101851,1738948245640,-500.0,0.00016438,2]
[352101852,1738948245650,-368.05050632,0.00016438,2]
[352101854,1738948245659,-500.0,0.00016438,2]
[352101856,1738948245668,-500.0,0.00016438,2]
[352101858,1738948245678,-500.0,0.00016438,2]
[352101860,1738948245687,-500.0,0.00016438,2]
[352101862,1738948245696,-500.0,0.00016438,2]
[352101864,1738948245705,-500.0,0.00016438,2]
[352101866,1738948245714,-792.11,0.00016438,2]
[352101868,1738948245724,-500.0,0.00016438,2]
[352101870,1738948245733,-500.0,0.00016438,2]
[352101872,1738948245743,-500.0,0.00016438,2]
[352101874,1738948245752,-2740.44,0.00016438,2]
[352101876,1738948245761,-500.0,0.00016438,2]
[352101878,1738948245771,-500.0,0.00016438,2]
[352101880,1738948245781,-500.9487653,0.00016438,2]
[352101882,1738948245791,-500.0,0.00016438,2]
[352101884,1738948245801,-500.0,0.00016438,2]
[352101886,1738948245811,-1470.35,0.00016438,2]
[352101888,1738948245820,-500.0,0.00016438,2]
[352101890,1738948245830,-1353.02,0.00016438,2]
[352101892,1738948245841,-500.0,0.00016438,2]
[352101894,1738948245850,-500.0,0.00016438,2]
[352101896,1738948245859,-500.0,0.00016438,2]
[352101898,1738948245872,-500.0,0.00016438,2]
[352101900,1738948245883,-500.0,0.00016438,2]
[352101902,1738948245892,-500.0,0.00016438,2]
[352101904,1738948245901,-500.0,0.00016438,2]
[352101906,1738948245912,-1268.25,0.00016438,2]
[352101908,1738948245921,-500.0,0.00016438,2]
[352101910,1738948245930,-500.0,0.00016438,2]
[352101912,1738948245940,-1183.14,0.00016438,2]
[352101914,1738948245950,-500.0,0.00016438,2]
[352101916,1738948245959,-4301.4,0.00016438,2]
[352101918,1738948245968,-500.0,0.00016438,2]
[352101920,1738948245978,-500.0,0.00016438,2]
[352101922,1738948245987,-338.60818792,0.00016438,2]
[352101924,1738948245996,-500.0,0.00016438,2]
[352101926,1738948246006,-500.0,0.00016438,2]
[352101928,1738948246015,-738.92,0.00016438,2]
[352101930,1738948246024,-819.35,0.00016438,2]
[352101932,1738948246034,-500.0,0.00016438,2]
[352101934,1738948246042,-1437.18,0.00016438,2]
[352101936,1738948246052,-927.47,0.00016438,2]
[352101938,1738948246061,-500.0,0.00016438,2]
[352101940,1738948246070,-223.43219069,0.00016438,2]
[352101942,1738948246079,-500.0,0.00016438,2]
[352101944,1738948246091,-523.17711343,0.00016438,2]
[352101946,1738948246100,-500.0,0.00016438,2]
[352101948,1738948246109,-500.0,0.00016438,2]
[352101950,1738948246118,-500.0,0.00016438,2]
[352101952,1738948246128,-500.0,0.00016438,2]
[352101954,1738948246137,-1295.47,0.00016438,2]
[352101956,1738948246147,-500.0,0.00016438,2]
[352101958,1738948246156,-500.0,0.00016438,2]
[352101961,1738948246166,-500.0,0.00016438,2]
[352101962,1738948246175,-500.0,0.00016438,2]
[352101964,1738948246185,-500.0,0.00016438,2]
[352101966,1738948246194,-500.0,0.00016438,2]
[352101968,1738948246204,-500.0,0.00016438,2]
[352101970,1738948246214,-500.0,0.00016438,2]
[352101972,1738948246224,-500.0,0.00016438,2]
[352101974,1738948246234,-457.05378857,0.00016438,2]
[352101975,1738948246245,-500.0,0.00016438,2]
[352101976,1738948246255,-500.0,0.00016438,2]
[352101978,1738948246265,-2070.62,0.00016438,2]
[352101982,1738948246275,-500.0,0.00016438,2]
[352101984,1738948246286,-500.0,0.00016438,2]
[352101987,1738948246296,-1151.81,0.00016438,2]
[352101989,1738948246307,-500.0,0.00016438,2]
[352101991,1738948246316,-500.0,0.00016438,2]
[352101993,1738948246327,-500.0,0.00016438,2]
[352101995,1738948246338,-500.0,0.00016438,2]
[352101997,1738948246351,-500.0,0.00016438,2]
[352101999,1738948246362,-1405.12,0.00016438,2]
[352102001,1738948246372,-500.0,0.00016438,2]
[352102003,1738948246382,-842.7,0.00016438,2]
[352102005,1738948246393,-500.0,0.00016438,2]
[352102007,1738948246403,-1556.78,0.00016438,2]
[352102009,1738948246412,-500.0,0.00016438,2]
[352102012,1738948246423,-561.65,0.00016438,2]
[352102014,1738948246434,-500.0,0.00016438,2]
[352102016,1738948246446,-500.0,0.00016438,2]
[352102018,1738948246455,-500.0,0.00016438,2]
[352102020,1738948246465,-500.0,0.00016438,2]
[352102022,1738948246475,-1500.01,0.00016438,2]
[352102024,1738948246486,-2780.18,0.00016438,2]
[352102026,1738948246496,-2780.18,0.00016438,2]
[352102028,1738948246506,-500.0,0.00016438,2]
[352102030,1738948246517,-2780.18,0.00016438,2]
[352102032,1738948246527,-3456.75,0.00016438,2]
[352102034,1738948246538,-500.0,0.00016438,2]
[352102035,1738948246548,-4272.15,0.00016438,2]
[352102038,1738948246559,-985.27,0.00016438,2]
[352102039,1738948246569,-500.0,0.00016438,2]
[352102041,1738948246579,-1265.01,0.00016438,2]
[352102043,1738948246590,-500.0,0.00016438,2]
[352102045,1738948246599,-500.0,0.00016438,2]
[352102047,1738948246609,-1675.34,0.00016438,2]
[352102049,1738948246618,-959.24,0.00016438,2]
[352102051,1738948246627,-718.88,0.00016438,2]
[352102053,1738948246637,-530.98,0.00016438,2]
[352102055,1738948246646,-500.0,0.00016438,2]
[352102057,1738948246655,-3384.55,0.00016438,2]
[352102059,1738948246665,-2248.93,0.00016438,2]
[352102061,1738948246674,-978.53,0.00016438,2]
[352102063,1738948246684,-500.0,0.00016438,2]
[352102065,1738948246694,-519.03,0.00016438,2]
[352102067,1738948246704,-2544.34,0.00016438,2]
[352102069,1738948246714,-500.0,0.00016438,2]
[352102071,1738948246723,-1543.03,0.00016438,2]
[352102073,1738948246732,-590.24,0.00016438,2]
[352102075,1738948246742,-500.0,0.00016438,2]
[352102078,1738948246752,-1394.28,0.00016438,2]
[352102079,1738948246761,-1887.14,0.00016438,2]
[352102081,1738948246771,-500.0,0.00016438,2]
[352102083,1738948246781,-1015.33,0.00016438,2]
[352102085,1738948246790,-1930.39,0.00016438,2]
[352102087,1738948246800,-500.0,0.00016438,2]
[352102089,1738948246809,-500.0,0.00016438,2]
[352102091,1738948246819,-1624.25,0.00016438,2]
[352102094,1738948246828,-2573.72,0.00016438,2]
[352102096,1738948246840,-500.0,0.00016438,2]
[352102098,1738948246850,-500.0,0.00016438,2]
[352102099,1738948246859,-500.0,0.00016438,2]
[352102102,1738948246873,-1736.75,0.00016438,2]
[352102104,1738948246882,-500.0,0.00016438,2]
[352102106,1738948246892,-652.29,0.00016438,2]
[352102108,1738948246901,-500.0,0.00016438,2]
[352102110,1738948246911,-500.0,0.00016438,2]
[352102112,1738948246923,-1455.11,0.00016438,2]
[352102114,1738948246932,-1416.82,0.00016438,2]
[352102117,1738948246943,-503.22,0.00016438,2]
[352102120,1738948246954,-500.0,0.00016438,2]
[352102123,1738948246963,-2466.99,0.00016438,2]
[352102126,1738948246973,-656.52,0.00016438,2]
[352102128,1738948246983,-1593.35,0.00016438,2]
[352102132,1738948246993,-500.0,0.00016438,2]
[352102133,1738948247002,-2405.0,0.00016438,2]
[352102136,1738948247011,-2423.09,0.00016438,2]
[352102139,1738948247021,-500.0,0.00016438,2]
[352102142,1738948247031,-500.0,0.00016438,2]
[352102145,1738948247042,-966.03,0.00016438,2]
[352102147,1738948247050,-500.0,0.00016438,2]
[352102150,1738948247060,-500.0,0.00016438,2]
[352102152,1738948247069,-1558.8,0.00016438,2]
[352102154,1738948247078,-500.0,0.00016438,2]
[352102167,1738948247205,-500.0,0.00016438,2]
[352102169,1738948247216,-1719.43,0.00016438,2]
[352102171,1738948247230,-500.0,0.00016438,2]
[352102173,1738948247249,-1749.34,0.00016438,2]
[352102175,1738948247265,-500.0,0.00016438,2]
[352102177,1738948247276,-500.0,0.00016438,2]
[352102179,1738948247287,-500.0,0.00016438,2]
[352102181,1738948247296,-500.0,0.00016438,2]
[352102183,1738948247307,-3912.75,0.00016438,2]
[352102185,1738948247317,-500.0,0.00016438,2]
[352102187,1738948247329,-3448.07,0.00016438,2]
[352102189,1738948247342,-3627.05,0.00016438,2]
[352102191,1738948247352,-500.0,0.00016438,2]
[352102193,1738948247362,-500.0,0.00016438,2]
[352102195,1738948247372,-1802.79,0.00016438,2]
[352102197,1738948247382,-500.0,0.00016438,2]
[352102199,1738948247393,-500.0,0.00016438,2]
[352102201,1738948247404,-2259.84,0.00016438,2]
[352102203,1738948247415,-1703.82,0.00016438,2]
[352102205,1738948247426,-508.91,0.00016438,2]
[352102207,1738948247436,-1538.07,0.00016438,2]
[352102209,1738948247445,-583.7,0.00016438,2]
[352102211,1738948247455,-500.0,0.00016438,2]
[352102213,1738948247466,-501.3207919,0.00016438,2]
[352102215,1738948247476,-1709.66,0.00016438,2]
[352102217,1738948247485,-1011.4,0.00016438,2]
[352102219,1738948247496,-507.65434859,0.00016438,2]
[352102221,1738948247506,-1905.93,0.00016438,2]
[352102222,1738948247516,-2214.67,0.00016438,2]
[352102223,1738948247527,-500.0,0.00016438,2]
[352102224,1738948247538,-1025.6,0.00016438,2]
[352102225,1738948247549,-500.0,0.00016438,2]
[352102226,1738948247560,-500.0,0.00016438,2]
[352102227,1738948247570,-500.0,0.00016438,2]
[352102228,1738948247582,-500.0,0.00016438,2]
[352102229,1738948247594,-1503.45,0.00016438,2]
[352102230,1738948247605,-368.68946573,0.00016438,2]
[352102231,1738948247615,-5167.8,0.00016438,2]
[352102232,1738948247624,-2850.09,0.00016438,2]
[352102233,1738948247635,-500.0,0.00016438,2]
[352102234,1738948247645,-500.0,0.00016438,2]
[352102236,1738948247655,-2451.04,0.00016438,2]
[352102238,1738948247665,-500.0,0.00016438,2]
[352102240,1738948247675,-617.74,0.00016438,2]
[352102242,1738948247685,-500.0,0.00016438,2]
[352102244,1738948247694,-500.0,0.00016438,2]
[352102246,1738948247704,-1659.78,0.00016438,2]
[352102248,1738948247715,-500.0,0.00016438,2]
[352102250,1738948247725,-1198.97,0.00016438,2]
[352102252,1738948247734,-500.0,0.00016438,2]
[352102254,1738948247744,-500.0,0.00016438,2]
[352102256,1738948247754,-3566.14,0.00016438,2]
[352102258,1738948247768,-605.76614573,0.00016438,2]
[352102260,1738948247779,-500.0,0.00016438,2]
[352102262,1738948247790,-500.0,0.00016438,2]
[352102264,1738948247801,-3686.85,0.00016438,2]
[352102266,1738948247812,-500.0,0.00016438,2]
[352102268,1738948247822,-1344.31,0.00016438,2]
[352102270,1738948247833,-3680.74,0.00016438,2]
[352102272,1738948247845,-1459.06,0.00016438,2]
[352102274,1738948247855,-1093.99,0.00016438,2]
[352102276,1738948247865,-2822.79,0.00016438,2]
[352102278,1738948247877,-500.0,0.00016438,2]
[352102279,1738948247886,-1267.7,0.00016438,2]
[352102281,1738948247896,-500.0,0.00016438,2]
[352102283,1738948247905,-1303.33,0.00016438,2]
[352102285,1738948247917,-1326.94,0.00016438,2]
[352102287,1738948247927,-500.0,0.00016438,2]
[352102290,1738948247937,-500.0,0.00016438,2]
[352102291,1738948247946,-500.0,0.00016438,2]
[352102293,1738948247959,-500.0,0.00016438,2]
[352102295,1738948247969,-508.15097911,0.00016438,2]
[352102297,1738948247979,-877.89,0.00016438,2]
[352102299,1738948247989,-500.0,0.00016438,2]
[352102301,1738948248000,-5797.68,0.00016438,2]
[352102303,1738948248010,-1224.73,0.00016438,2]
[352102305,1738948248020,-2318.52,0.00016438,2]
[352102307,1738948248031,-500.0,0.00016438,2]
[352102309,1738948248041,-500.0,0.00016438,2]
[352102311,1738948248051,-2401.31,0.00016438,2]
[352102313,1738948248060,-1269.98,0.00016438,2]
[352102315,1738948248070,-587.89382099,0.00016438,2]
[352102317,1738948248079,-500.0,0.00016438,2]
[352102319,1738948248090,-500.0,0.00016438,2]
[352102321,1738948248100,-500.0,0.00016438,2]
[352102323,1738948248110,-500.0,0.00016438,2]
[352102325,1738948248119,-880.31,0.00016438,2]
[352102327,1738948248129,-500.0,0.00016438,2]
[352102329,1738948248140,-500.0,0.00016438,2]
[352102331,1738948248149,-159.58042233,0.00016438,2]
[352102333,1738948248159,-431.0,0.0001648,2]
[352102335,1738948248169,-2780.18,0.0001649,2]
[352102337,1738948248179,-500.0,0.00016491,2]
[352102339,1738948248188,-500.0,0.00016491,2]
[352102341,1738948248198,-500.0,0.00016491,2]
[352102343,1738948248208,-500.0,0.00016491,2]
[352102345,1738948248218,-500.0,0.00016491,2]
[352102347,1738948248229,-500.0,0.00016491,2]
[352102349,1738948248240,-500.0,0.00016491,2]
[352102351,1738948248251,-500.0,0.00016491,2]
[352102353,1738948248261,-300.0,0.00016491,2]
[352102355,1738948248272,-500.0,0.00016491,2]
[352102357,1738948248282,-500.0,0.00016491,2]
[352102359,1738948248292,-500.0,0.00016491,2]
[352102361,1738948248303,-500.0,0.00016491,2]
[352102363,1738948248313,-1000.0,0.00016491,2]
[352102365,1738948248323,-255925.26069117,0.00016492,9]
[352102367,1738948248333,-2000.0,0.00016499,2]
[352102369,1738948248346,-2000.0,0.00016499,2]
[352102371,1738948248355,-2000.0,0.00016499,2]
[352102373,1738948248365,-2000.0,0.00016499,2]
[352102375,1738948248375,-2000.0,0.00016499,2]
[352102377,1738948248386,-2000.0,0.00016499,2]
[352102379,1738948248397,-2000.0,0.00016499,2]
[352102381,1738948248408,-2000.0,0.00016499,2]
[352102383,1738948248419,-3909.658,0.00016499,2]
[352102385,1738948248429,-560.99,0.00016499,2]
[352102387,1738948248440,-2780.18,0.00016499,2]
[352102389,1738948248451,-2780.18,0.00016499,2]
[352102391,1738948248461,-2780.18,0.00016499,2]
[352102393,1738948248471,-2780.18,0.00016499,2]
[352102395,1738948248482,-2780.18,0.00016499,2]
[352102397,1738948248493,-2780.18,0.00016499,2]
[352102399,1738948248503,-2780.18,0.00016499,2]
[352102401,1738948248513,-2780.18,0.00016499,2]
[352102403,1738948248523,-2780.18,0.00016499,2]
[352102405,1738948248533,-2780.18,0.00016499,2]
[352102407,1738948248542,-2780.18,0.00016499,2]
[352102409,1738948248552,-2780.18,0.00016499,2]
[352102411,1738948248562,-2780.18,0.00016499,2]
[352102413,1738948248573,-2780.18,0.00016499,2]
[352102415,1738948248583,-2780.18,0.00016499,2]
[352102417,1738948248597,-2780.18,0.00016499,2]
[352102419,1738948248607,-2780.18,0.00016499,2]
[352102421,1738948248619,-2780.18,0.00016499,2]
[352102423,1738948248629,-2780.18,0.00016499,2]
[352102425,1738948248639,-2780.25300935,0.00016499,2]
[352102427,1738948248650,-999.0,0.00016499,2]
[352102429,1738948248661,-2422.0,0.00016499,2]
[352102431,1738948248671,-356.6299702,0.000165,3]
[352102434,1738948248681,-2011.32940815,0.000165,2]
[352102435,1738948248691,-890408.82048245,0.000165,3]
[352102437,1738948248701,-5148237.07352225,0.000165,5]
[352102441,1738948248731,-703182.63120125,0.000165,5]
[352102445,1738948248754,-492.36,0.00016438,2]
[352102447,1738948248766,-7.64,0.00016438,2]
[352102449,1738948248777,-1692.04651401,0.000165,5]
[352102451,1738948248789,-305.91068178,0.000165,5]
[352102487,1738948249168,-1573.39282752,0.000165,5]
[352102490,1738948249186,-6332.2849218,0.000165,5]
[352102502,1738948249302,-2299.61231958,0.000165,5]
[352102504,1738948249314,-1786.11141638,0.000165,5]
[352102577,1738948250046,-378.2,0.00016438,2]
[352102579,1738948250056,-528.054892,0.000165,5]
[352102582,1738948250070,-4913.33276323,0.000165,5]
[352102584,1738948250081,-253.17469172,0.000165,5]
[352102586,1738948250095,-528.21248418,0.000165,5]
[352102588,1738948250107,-3394.85811886,0.000165,5]
[352102592,1738948250129,-4256.23642858,0.000165,5]
[352102594,1738948250140,-30214.23951208,0.000165,5]
[352102596,1738948250152,-10293.42126388,0.000165,5]
[352103311,1738949099907,1671.36229825,0.0002,120]
[352103340,1738949431641,-465.88366983,8.699e-05,2]
[352103358,1738949431810,-239.91453017,8.699e-05,2]
[352103360,1738949431820,-511.0343,8.973e-05,2]
[352103362,1738949431830,-180.45539977,8.973e-05,2]
[352103364,1738949431839,-500.0,9.569e-05,2]
[352103366,1738949431848,-180.45539977,9.747e-05,2]
[352103367,1738949431858,-500.0,9.973e-05,2]
[352103368,1738949431867,-150.0,9.998e-05,2]
[352103369,1738949431876,-500.0,9.999e-05,2]
[352103370,1738949431885,-500.0,9.999e-05,2]
[352103371,1738949431895,-500.0,9.999e-05,2]
[352103372,1738949431904,-500.0,9.999e-05,2]
[352103373,1738949431912,-500.0,9.999e-05,2]
[352103374,1738949431922,-500.0,9.999e-05,2]
[352103375,1738949431931,-330.74032506,9.999e-05,2]
[352103376,1738949431958,-220.7061529,9.999e-05,2]
[352103377,1738949431967,-265.5438471,9.999e-05,2]
[352103378,1738949431978,-234.4561529,9.999e-05,2]
[352103379,1738949431988,-75.5938471,9.999e-05,2]
[352103380,1738949431999,-290.46483086,9.999e-05,2]
[352103381,1738949432407,-118.84989551,9.999e-05,2]
[352103382,1738949432417,-500.0,9.999e-05,2]
[352103383,1738949432427,-500.0,9.999e-05,2]
[352103384,1738949432436,-500.0,9.999e-05,2]
[352103385,1738949432445,-500.0,9.999e-05,2]
[352103386,1738949432461,-500.0,9.999e-05,2]
[352103387,1738949432470,-500.0,9.999e-05,2]
[352103388,1738949432480,-500.0,9.999e-05,2]
[352103389,1738949432490,-500.0,9.999e-05,2]
[352103390,1738949432500,-500.0,9.999e-05,2]
[352103391,1738949432509,-500.0,9.999e-05,2]
[352103392,1738949432519,-500.0,9.999e-05,2]
[352103393,1738949432528,-500.0,9.999e-05,2]
[352103394,1738949432538,-500.0,9.999e-05,2]
[352103395,1738949432549,-500.0,9.999e-05,2]
[352103396,1738949432559,-500.0,9.999e-05,2]
[352103397,1738949432569,-500.0,9.999e-05,2]
[352103398,1738949432579,-18585.77736436,0.0001,2]
[352103399,1738949432593,-24267.199521,0.0001,2]
[352103400,1738949432605,-9775.78976325,0.0001,2]
[352103401,1738949432617,-253.9732195,0.0001,2]
[352103412,1738949437512,-475.72446903,0.0001,2]
[352103413,1738949437678,-7651876.35512213,0.0001,2]
[352103414,1738949437687,-42149.6267047,0.0001,2]
[352103415,1738949437697,-79847.91617216,0.0001,2]
[352103416,1738949437708,-1080.13863819,0.0001,2]
[352103417,1738949437718,-357.0952547,0.0001,2]
[352103418,1738949437728,-6517.20068815,0.0001,2]
[352103419,1738949437738,-207.72485393,0.0001,2]
[352103420,1738949437748,-180.45539977,0.00010421,2]
[352103421,1738949437757,-221.71716136,0.00010521,2]
[352103422,1738949437767,-161.32982169,0.000109,2]
[352103423,1738949437775,-421.4,0.00010922,2]
[352103424,1738949437785,-150.0,0.00010998,2]
[352103425,1738949437795,-151.31,0.00011,2]
[352103426,1738949437805,-151.31,0.00011,2]
[352103427,1738949437814,-151.31,0.00011,2]
[352103428,1738949437823,-151.31,0.00011,2]
[352103429,1738949437835,-151.31,0.00011,2]
[352103430,1738949437844,-151.31,0.00011,2]
[352103431,1738949437854,-151.31,0.00011,2]
[352103432,1738949437863,-151.31,0.00011,2]
[352103433,1738949437873,-151.31,0.00011,2]
[352103434,1738949437882,-151.31,0.00011,2]
[352103435,1738949437892,-151.31,0.00011,2]
[352103436,1738949437902,-151.31,0.00011,2]
[352103437,1738949437912,-151.31,0.00011,2]
[352103438,1738949437921,-151.31,0.00011,2]
[352103439,1738949437932,-151.31,0.00011,2]